[Event "*** Titled Tuesday 3|2 Blitz"]
[Site "Chess.com"]
[Date "2015.10.06"]
[Round "3"]
[White "Tal-Baronfew"]
[Black "lorcho"]
[Result "1-0"]
[WhiteElo "2693"]
[BlackElo "2529"]
[TimeControl "180+2"]
[EndTime "11:37:55 PDT"]
[Termination "Tal-Baronfew won by resignation"]

1. e4 {[%clk 0:03:01.9]} 1... c6 {[%clk 0:03:00.8]} 2. d4 {[%clk 0:03:02.1]}
2... g6 {[%clk 0:03:02]} 3. Nc3 {[%clk 0:03:02.2]} 3... d5 {[%clk 0:03:03.1]} 4.
f3 {[%clk 0:02:59.3]} 4... Bg7 {[%clk 0:03:01.6]} 5. Be3 {[%clk 0:02:55.3]} 5...
a6 {[%clk 0:02:56.2]} 6. Qd2 {[%clk 0:02:45.9]} 6... b5 {[%clk 0:02:57.2]} 7.
O-O-O {[%clk 0:02:20.4]} 7... b4 {[%clk 0:02:44.3]} 8. Na4 {[%clk 0:02:14.4]}
8... a5 {[%clk 0:02:45.2]} 9. Kb1 {[%clk 0:02:11.5]} 9... Nd7 {[%clk 0:02:46]}
10. h4 {[%clk 0:02:11.2]} 10... h5 {[%clk 0:02:46.1]} 11. Nh3 {[%clk 0:02:09.6]}
11... dxe4 {[%clk 0:02:46.7]} 12. fxe4 {[%clk 0:02:08.2]} 12... Ngf6 {[%clk
0:02:48.3]} 13. Ng5 {[%clk 0:02:08.2]} 13... O-O {[%clk 0:02:43.1]} 14. Bc4
{[%clk 0:02:08]} 14... e6 {[%clk 0:02:30.8]} 15. Rdf1 {[%clk 0:02:03.9]} 15...
Ba6 {[%clk 0:02:20.5]} 16. Bxa6 {[%clk 0:02:03.9]} 16... Rxa6 {[%clk 0:02:22.4]}
17. Rh3 {[%clk 0:01:50.9]} 17... e5 {[%clk 0:02:13.8]} 18. Rhf3 {[%clk
0:01:45.2]} 18... exd4 {[%clk 0:01:44]} 19. Qxd4 {[%clk 0:01:38.8]} 19... Qe7
{[%clk 0:01:41.9]} 20. Qc4 {[%clk 0:01:36.7]} 20... Raa8 {[%clk 0:01:41.8]} 21.
Bc5 {[%clk 0:01:27.9]} 21... Nxc5 {[%clk 0:01:40.1]} 22. Qxc5 {[%clk 0:01:29.6]}
22... Rae8 {[%clk 0:01:30.1]} 23. Qxe7 {[%clk 0:01:28.3]} 23... Rxe7 {[%clk
0:01:32]} 24. Rxf6 {[%clk 0:01:29.9]} 24... Bxf6 {[%clk 0:01:31.2]} 25. Rxf6
{[%clk 0:01:31.3]} 25... Rd8 {[%clk 0:01:26.2]} 26. Kc1 {[%clk 0:01:32.9]} 26...
Red7 {[%clk 0:01:26.8]} 27. Rf1 {[%clk 0:01:30.7]} 27... Kg7 {[%clk 0:01:08.9]}
28. Nc5 {[%clk 0:01:31.4]} 28... Re7 {[%clk 0:01:08.4]} 29. Rxf7+ {[%clk
0:01:15.5]} 29... Rxf7 {[%clk 0:01:09.2]} 30. Nce6+ {[%clk 0:01:17.1]} 30... Kg8
{[%clk 0:00:55.9]} 31. Nxf7 {[%clk 0:01:16]} 31... Re8 {[%clk 0:00:44]} 32. Neg5
{[%clk 0:01:16.9]} 32... c5 {[%clk 0:00:39.4]} 33. Kd2 {[%clk 0:01:13.7]} 33...
c4 {[%clk 0:00:37.6]} 34. e5 {[%clk 0:01:14.5]} 34... Kg7 {[%clk 0:00:34.1]} 35.
g3 {[%clk 0:01:02.1]} 35... a4 {[%clk 0:00:33.1]} 36. Ke3 {[%clk 0:01:00.1]}
36... b3 {[%clk 0:00:25.9]} 37. cxb3 {[%clk 0:01:01.1]} 37... cxb3 {[%clk
0:00:23.9]} 38. axb3 {[%clk 0:00:57.4]} 38... axb3 {[%clk 0:00:24.4]} 39. Kd3
{[%clk 0:00:53.6]} 39... Rc8 {[%clk 0:00:22.5]} 40. Nd6 {[%clk 0:00:49.7]} 40...
Rc2 {[%clk 0:00:21.2]} 41. Nc4 {[%clk 0:00:48]} 41... Rg2 {[%clk 0:00:20.7]} 42.
e6 {[%clk 0:00:45.9]} 42... Rxg3+ {[%clk 0:00:20.2]} 43. Kd4 {[%clk 0:00:47.1]}
43... Rg4+ {[%clk 0:00:17.4]} 44. Kd5 {[%clk 0:00:48.6]} 44... Kf6 {[%clk
0:00:17.2]} 45. Ne5 {[%clk 0:00:45.1]} 45... Rxh4 {[%clk 0:00:12.8]} 46. Nh7+
{[%clk 0:00:43.9]} 46... Kg7 {[%clk 0:00:06.7]} 47. e7 {[%clk 0:00:45.1]} 47...
Kxh7 {[%clk 0:00:06]} 48. e8=Q {[%clk 0:00:45.1]} 1-0

[Event "*** Titled Tuesday 3|2 Blitz"]
[Site "Chess.com"]
[Date "2015.10.06"]
[Round "3"]
[White "Mugzyyy"]
[Black "Canonkasparov"]
[Result "0-1"]
[WhiteElo "2530"]
[BlackElo "2376"]
[TimeControl "180+2"]
[EndTime "11:37:58 PDT"]
[Termination "Canonkasparov won by resignation"]

1. d4 {[%clk 0:03:01.9]} 1... d5 {[%clk 0:03:00.3]} 2. c4 {[%clk 0:03:02.9]}
2... c6 {[%clk 0:03:01]} 3. Nf3 {[%clk 0:03:03.9]} 3... Nf6 {[%clk 0:03:00.8]}
4. Nc3 {[%clk 0:03:05.4]} 4... dxc4 {[%clk 0:02:59.3]} 5. a4 {[%clk 0:03:05.8]}
5... Bf5 {[%clk 0:02:59.2]} 6. Ne5 {[%clk 0:03:06.9]} 6... Nbd7 {[%clk 0:02:59]}
7. Nxc4 {[%clk 0:03:07.8]} 7... Qc7 {[%clk 0:02:59]} 8. Qd2 {[%clk 0:03:08.1]}
8... e6 {[%clk 0:02:52.4]} 9. f3 {[%clk 0:03:02.1]} 9... Bb4 {[%clk 0:02:51.2]}
10. e4 {[%clk 0:02:58]} 10... Bg6 {[%clk 0:02:43.6]} 11. Qf4 {[%clk 0:02:56]}
11... Qxf4 {[%clk 0:02:42.1]} 12. Bxf4 {[%clk 0:02:56.7]} 12... Nb6 {[%clk
0:02:39.1]} 13. Nd6+ {[%clk 0:02:55.8]} 13... Bxd6 {[%clk 0:02:38.2]} 14. Bxd6
{[%clk 0:02:56.9]} 14... O-O-O {[%clk 0:02:38.3]} 15. Bc5 {[%clk 0:02:48.6]}
15... Kb8 {[%clk 0:02:34.9]} 16. a5 {[%clk 0:02:44.7]} 16... Nc8 {[%clk
0:02:33.9]} 17. O-O-O {[%clk 0:02:35.8]} 17... Rhe8 {[%clk 0:02:32.3]} 18. Bc4
{[%clk 0:02:27.2]} 18... h5 {[%clk 0:02:19.3]} 19. h3 {[%clk 0:02:23.5]} 19...
a6 {[%clk 0:02:13.1]} 20. g4 {[%clk 0:02:23.2]} 20... Rh8 {[%clk 0:02:09.7]} 21.
g5 {[%clk 0:02:19.4]} 21... Nd7 {[%clk 0:02:09.4]} 22. Ba3 {[%clk 0:02:19.2]}
22... Rhe8 {[%clk 0:01:55.1]} 23. f4 {[%clk 0:02:12.7]} 23... Na7 {[%clk
0:01:48.2]} 24. f5 {[%clk 0:01:54.1]} 24... exf5 {[%clk 0:01:47.5]} 25. exf5
{[%clk 0:01:55.6]} 25... Bxf5 {[%clk 0:01:46.9]} 26. Bxf7 {[%clk 0:01:56.6]}
26... Re3 {[%clk 0:01:39.8]} 27. h4 {[%clk 0:01:53.9]} 27... g6 {[%clk
0:01:39.3]} 28. Rhe1 {[%clk 0:01:51.2]} 28... Rh3 {[%clk 0:01:35]} 29. Be7
{[%clk 0:01:27.8]} 29... Rc8 {[%clk 0:01:34.4]} 30. Bd6+ {[%clk 0:01:22.9]}
30... Ka8 {[%clk 0:01:34.2]} 31. Re7 {[%clk 0:01:24.5]} 31... Nb5 {[%clk
0:01:23]} 32. Bb4 {[%clk 0:00:59.7]} 32... Rh2 {[%clk 0:01:08.6]} 33. Rd2 {[%clk
0:00:44.7]} 33... Rh1+ {[%clk 0:01:07.2]} 34. Rd1 {[%clk 0:00:46.2]} 34... Rh2
{[%clk 0:01:07.4]} 35. Rde1 {[%clk 0:00:36.2]} 35... Nxd4 {[%clk 0:00:59.7]} 36.
Re8 {[%clk 0:00:34]} 36... Rc2+ {[%clk 0:00:50.6]} 37. Kd1 {[%clk 0:00:34.2]}
37... Bg4+ {[%clk 0:00:49.8]} 38. Ne2 {[%clk 0:00:32.5]} 38... Rxe8 {[%clk
0:00:47.7]} 39. Bxe8 {[%clk 0:00:33.7]} 39... Bxe2+ {[%clk 0:00:42.4]} 40. Rxe2
{[%clk 0:00:34.3]} 40... Rxe2 {[%clk 0:00:42]} 41. Bxd7 {[%clk 0:00:35.7]} 41...
Re4 {[%clk 0:00:38.7]} 42. Bc3 {[%clk 0:00:22.8]} 42... Nf3 {[%clk 0:00:36.1]}
43. Kc2 {[%clk 0:00:21.6]} 43... Rxh4 {[%clk 0:00:34.5]} 44. Bf6 {[%clk
0:00:17.5]} 44... Rh2+ {[%clk 0:00:34.1]} 45. Kd3 {[%clk 0:00:18.4]} 45... Rg2
{[%clk 0:00:33.3]} 46. Be8 {[%clk 0:00:17.1]} 46... Nxg5 {[%clk 0:00:32.9]} 47.
Bxg6 {[%clk 0:00:18.4]} 47... h4 {[%clk 0:00:32.9]} 48. Bf5 {[%clk 0:00:19.4]}
48... h3 {[%clk 0:00:33.3]} 0-1

[Event "*** Titled Tuesday 3|2 Blitz"]
[Site "Chess.com"]
[Date "2015.10.06"]
[Round "3"]
[White "ruifeng"]
[Black "oggy1984"]
[Result "0-1"]
[WhiteElo "2108"]
[BlackElo "2391"]
[TimeControl "180+2"]
[EndTime "11:38:03 PDT"]
[Termination "oggy1984 won by resignation"]

1. e4 {[%clk 0:03:01.9]} 1... c6 {[%clk 0:02:59.9]} 2. d4 {[%clk 0:03:02.1]}
2... d5 {[%clk 0:03:00.6]} 3. Nd2 {[%clk 0:03:02.8]} 3... dxe4 {[%clk 0:03:01]}
4. Nxe4 {[%clk 0:03:03.8]} 4... Bf5 {[%clk 0:03:02.4]} 5. Ng3 {[%clk 0:03:04.8]}
5... Bg6 {[%clk 0:03:03.8]} 6. N1e2 {[%clk 0:03:06]} 6... Nd7 {[%clk 0:02:59.8]}
7. Nf4 {[%clk 0:03:04.1]} 7... e5 {[%clk 0:02:50.7]} 8. Nxg6 {[%clk 0:03:01.7]}
8... hxg6 {[%clk 0:02:50.4]} 9. Be3 {[%clk 0:02:54.7]} 9... Ngf6 {[%clk
0:02:47.4]} 10. Bc4 {[%clk 0:02:41.6]} 10... Qc7 {[%clk 0:02:30.8]} 11. Qe2
{[%clk 0:02:31.5]} 11... e4 {[%clk 0:02:17.2]} 12. O-O-O {[%clk 0:02:24.1]}
12... Bd6 {[%clk 0:02:02.8]} 13. Kb1 {[%clk 0:02:02.3]} 13... O-O {[%clk
0:02:02.6]} 14. h4 {[%clk 0:01:57.3]} 14... b5 {[%clk 0:01:59.2]} 15. Bb3 {[%clk
0:01:57]} 15... a5 {[%clk 0:01:27.8]} 16. h5 {[%clk 0:01:18]} 16... a4 {[%clk
0:01:13.1]} 17. Bxf7+ {[%clk 0:01:18.4]} 17... Kxf7 {[%clk 0:01:11.4]} 18. hxg6+
{[%clk 0:01:19.3]} 18... Kxg6 {[%clk 0:00:57.8]} 19. Nh5 {[%clk 0:01:18.5]}
19... Rh8 {[%clk 0:00:52.6]} 20. g4 {[%clk 0:01:15.6]} 20... a3 {[%clk
0:00:38.2]} 21. b3 {[%clk 0:01:11.1]} 21... Nd5 {[%clk 0:00:35.2]} 22. Bd2
{[%clk 0:01:08.1]} 22... Rae8 {[%clk 0:00:28.6]} 23. f4 {[%clk 0:00:46.2]} 23...
e3 {[%clk 0:00:20.6]} 24. f5+ {[%clk 0:00:42]} 24... Kf7 {[%clk 0:00:20.9]} 25.
Be1 {[%clk 0:00:43.3]} 25... N7f6 {[%clk 0:00:20.4]} 26. Rg1 {[%clk 0:00:36.8]}
26... Nf4 {[%clk 0:00:12.1]} 27. Nxf4 {[%clk 0:00:36.8]} 27... Bxf4 {[%clk
0:00:14]} 28. g5 {[%clk 0:00:37.4]} 28... Nd5 {[%clk 0:00:14.2]} 29. Rg2 {[%clk
0:00:33.9]} 29... Ke7 {[%clk 0:00:14.3]} 30. f6+ {[%clk 0:00:32.9]} 30... gxf6
{[%clk 0:00:13.6]} 31. gxf6+ {[%clk 0:00:34.1]} 31... Kd8 {[%clk 0:00:12.6]} 32.
Rg7 {[%clk 0:00:33.8]} 32... Qd6 {[%clk 0:00:13.5]} 33. f7 {[%clk 0:00:32.8]}
33... Ref8 {[%clk 0:00:13.1]} 34. Qg4 {[%clk 0:00:29.5]} 34... Qd7 {[%clk
0:00:12.3]} 35. Qg6 {[%clk 0:00:26]} 35... Kc8 {[%clk 0:00:12.3]} 36. Ba5 {[%clk
0:00:23.2]} 36... e2 {[%clk 0:00:12.6]} 37. Re1 {[%clk 0:00:24.1]} 37... Rh2
{[%clk 0:00:12.2]} 38. Ka1 {[%clk 0:00:22.7]} 38... Qd6 {[%clk 0:00:08.6]} 39.
Qg4+ {[%clk 0:00:19.1]} 39... Kb7 {[%clk 0:00:08.6]} 40. c4 {[%clk 0:00:18.2]}
40... Ne3 {[%clk 0:00:07.6]} 41. Qxf4 {[%clk 0:00:08.5]} 41... Qxf4 {[%clk
0:00:07.9]} 42. cxb5 {[%clk 0:00:09.1]} 42... Qxd4+ {[%clk 0:00:08.2]} 0-1

[Event "*** Titled Tuesday 3|2 Blitz"]
[Site "Chess.com"]
[Date "2015.10.06"]
[Round "3"]
[White "MFBerna"]
[Black "talaicito"]
[Result "1-0"]
[WhiteElo "2079"]
[BlackElo "1965"]
[TimeControl "180+2"]
[EndTime "11:38:03 PDT"]
[Termination "MFBerna won on time"]

1. e4 {[%clk 0:03:01.9]} 1... e6 {[%clk 0:03:00.9]} 2. d4 {[%clk 0:03:01.9]}
2... d5 {[%clk 0:03:02.4]} 3. Nd2 {[%clk 0:03:00.9]} 3... Nf6 {[%clk 0:03:02.2]}
4. e5 {[%clk 0:02:58.4]} 4... Nfd7 {[%clk 0:03:03.6]} 5. Bd3 {[%clk 0:02:59.6]}
5... c5 {[%clk 0:03:04.5]} 6. c3 {[%clk 0:03:00.7]} 6... Nc6 {[%clk 0:03:05.8]}
7. Ne2 {[%clk 0:03:01.8]} 7... cxd4 {[%clk 0:03:06.4]} 8. cxd4 {[%clk
0:03:02.1]} 8... f6 {[%clk 0:03:07.9]} 9. exf6 {[%clk 0:03:02.4]} 9... Nxf6
{[%clk 0:03:09]} 10. Nf3 {[%clk 0:03:03.5]} 10... Qc7 {[%clk 0:03:07.9]} 11. Bf4
{[%clk 0:02:58.3]} 11... Bb4+ {[%clk 0:03:08.5]} 12. Nd2 {[%clk 0:02:52.3]}
12... Qb6 {[%clk 0:02:55]} 13. a3 {[%clk 0:02:27.9]} 13... Be7 {[%clk
0:02:40.7]} 14. Nb3 {[%clk 0:02:27.3]} 14... O-O {[%clk 0:02:37]} 15. O-O {[%clk
0:02:25.8]} 15... a5 {[%clk 0:02:05.4]} 16. Qc2 {[%clk 0:02:13.2]} 16... a4
{[%clk 0:01:54.5]} 17. Nc5 {[%clk 0:02:12.2]} 17... Nxd4 {[%clk 0:01:54.3]} 18.
Nxd4 {[%clk 0:02:12]} 18... Bxc5 {[%clk 0:01:53.9]} 19. Nf3 {[%clk 0:02:00.3]}
19... Bd7 {[%clk 0:01:43.4]} 20. Ne5 {[%clk 0:01:56.2]} 20... Bb5 {[%clk
0:01:43]} 21. Rae1 {[%clk 0:01:42]} 21... Rac8 {[%clk 0:01:36.9]} 22. Qd2 {[%clk
0:01:25.4]} 22... Bxd3 {[%clk 0:01:13.2]} 23. Nxd3 {[%clk 0:01:18]} 23... Ne4
{[%clk 0:01:13.6]} 24. Qe2 {[%clk 0:01:05.2]} 24... Bd4 {[%clk 0:00:51.5]} 25.
Kh1 {[%clk 0:00:50.7]} 25... Rce8 {[%clk 0:00:20.5]} 26. f3 {[%clk 0:00:51]}
26... e5 {[%clk 0:00:17.9]} 27. fxe4 {[%clk 0:00:40.3]} 27... exf4 {[%clk
0:00:17.8]} 28. e5 {[%clk 0:00:34.3]} 28... Qh6 {[%clk 0:00:15.1]} 29. Qf3
{[%clk 0:00:30.2]} 29... Rd8 {[%clk 0:00:12.3]} 30. e6 {[%clk 0:00:30.7]} 30...
Rf5 {[%clk 0:00:10.9]} 31. e7 {[%clk 0:00:30.6]} 31... Re8 {[%clk 0:00:11.9]}
32. Nb4 {[%clk 0:00:24.6]} 32... Rh5 {[%clk 0:00:09.4]} 33. h3 {[%clk
0:00:19.3]} 33... Bxb2 {[%clk 0:00:07.3]} 34. Nxd5 {[%clk 0:00:19.6]} 34... Rf5
{[%clk 0:00:04.9]} 35. Nc7 {[%clk 0:00:16.4]} 35... Qg6 {[%clk 0:00:05]} 36.
Nxe8 {[%clk 0:00:15.6]} 36... Qxe8 {[%clk 0:00:05.9]} 37. Qxb7 {[%clk
0:00:13.1]} 37... Bxa3 {[%clk 0:00:06.3]} 38. Qe4 {[%clk 0:00:11.3]} 38... Rf7
{[%clk 0:00:06.6]} 39. Rxf4 {[%clk 0:00:07.9]} 39... Rxe7 {[%clk 0:00:05.9]} 40.
Qd5+ {[%clk 0:00:06.3]} 40... Kh8 {[%clk 0:00:05.6]} 41. Ref1 {[%clk 0:00:06.6]}
41... Re1 {[%clk 0:00:04.2]} 42. Qd3 {[%clk 0:00:03.2]} 1-0

[Event "*** Titled Tuesday 3|2 Blitz"]
[Site "Chess.com"]
[Date "2015.10.06"]
[Round "3"]
[White "Goala"]
[Black "dpopadic"]
[Result "1-0"]
[WhiteElo "2159"]
[BlackElo "2222"]
[TimeControl "180+2"]
[EndTime "11:38:45 PDT"]
[Termination "Goala won by resignation"]

1. d4 {[%clk 0:03:01.9]} 1... Nf6 {[%clk 0:03:00.5]} 2. c4 {[%clk 0:03:02.5]}
2... g6 {[%clk 0:03:01.2]} 3. Nc3 {[%clk 0:03:03.5]} 3... Bg7 {[%clk 0:03:02.4]}
4. e4 {[%clk 0:03:04.5]} 4... d6 {[%clk 0:03:03.7]} 5. h3 {[%clk 0:03:06]} 5...
O-O {[%clk 0:03:04.6]} 6. Bg5 {[%clk 0:03:07.5]} 6... c5 {[%clk 0:03:00.5]} 7.
d5 {[%clk 0:03:07.8]} 7... e6 {[%clk 0:02:59.7]} 8. Bd3 {[%clk 0:03:04.3]} 8...
h6 {[%clk 0:02:55.7]} 9. Be3 {[%clk 0:03:03.8]} 9... Kh7 {[%clk 0:02:53]} 10.
Nf3 {[%clk 0:03:03.2]} 10... a6 {[%clk 0:02:53.1]} 11. a4 {[%clk 0:03:02.9]}
11... Nbd7 {[%clk 0:02:53.8]} 12. O-O {[%clk 0:03:03.9]} 12... e5 {[%clk
0:02:49.6]} 13. a5 {[%clk 0:02:50.7]} 13... Nh5 {[%clk 0:02:50.2]} 14. Be2
{[%clk 0:02:31.5]} 14... Rb8 {[%clk 0:02:46.6]} 15. Ne1 {[%clk 0:02:18.4]} 15...
Nf4 {[%clk 0:02:46.7]} 16. Bxf4 {[%clk 0:02:19.7]} 16... exf4 {[%clk 0:02:47.8]}
17. Nd3 {[%clk 0:02:21.6]} 17... g5 {[%clk 0:02:44.5]} 18. Bg4 {[%clk
0:02:21.3]} 18... Ne5 {[%clk 0:02:32.5]} 19. Nxe5 {[%clk 0:02:19.6]} 19... Bxe5
{[%clk 0:02:31.8]} 20. Bxc8 {[%clk 0:02:04.9]} 20... Qxc8 {[%clk 0:02:32.4]} 21.
Na4 {[%clk 0:01:55.3]} 21... f5 {[%clk 0:02:23.3]} 22. exf5 {[%clk 0:01:49.8]}
22... Qxf5 {[%clk 0:02:23.3]} 23. Qb1 {[%clk 0:01:27.7]} 23... f3 {[%clk
0:02:22.1]} 24. g3 {[%clk 0:01:19.6]} 24... h5 {[%clk 0:02:15.2]} 25. Nb6 {[%clk
0:01:15]} 25... Rbd8 {[%clk 0:02:16.1]} 26. Re1 {[%clk 0:01:12.1]} 26... Kg7
{[%clk 0:02:15.9]} 27. Qxf5 {[%clk 0:01:12]} 27... Rxf5 {[%clk 0:02:16.8]} 28.
Rab1 {[%clk 0:01:08.5]} 28... h4 {[%clk 0:02:11.4]} 29. g4 {[%clk 0:01:01.4]}
29... Rf4 {[%clk 0:02:12.2]} 30. b3 {[%clk 0:00:59.5]} 30... Rd4 {[%clk
0:02:09.7]} 31. Re3 {[%clk 0:00:56.9]} 31... Rf8 {[%clk 0:02:08.5]} 32. Nd7
{[%clk 0:00:58]} 32... Re8 {[%clk 0:01:51.7]} 33. Rbe1 {[%clk 0:00:57.9]} 33...
Rd2 {[%clk 0:01:36.5]} 34. Kf1 {[%clk 0:00:44.7]} 34... Ra2 {[%clk 0:01:30.3]}
35. Rxf3 {[%clk 0:00:30]} 35... Rxa5 {[%clk 0:01:30.8]} 36. Rf5 {[%clk
0:00:30.6]} 36... Kg6 {[%clk 0:01:27.3]} 37. Nxe5+ {[%clk 0:00:25.9]} 37... dxe5
{[%clk 0:01:27.6]} 38. Rexe5 {[%clk 0:00:26]} 38... Rxe5 {[%clk 0:01:28.6]} 39.
Rxe5 {[%clk 0:00:27.9]} 39... Ra1+ {[%clk 0:01:28.9]} 40. Kg2 {[%clk 0:00:27.9]}
40... b5 {[%clk 0:01:30]} 41. d6 {[%clk 0:00:25]} 41... Rd1 {[%clk 0:01:19.9]}
42. cxb5 {[%clk 0:00:16]} 42... axb5 {[%clk 0:01:20.7]} 43. Rxc5 {[%clk
0:00:17.2]} 43... Rxd6 {[%clk 0:01:21.5]} 44. Rxb5 {[%clk 0:00:18.7]} 44... Rd3
{[%clk 0:01:14.4]} 45. Rb6+ {[%clk 0:00:17.8]} 45... Kg7 {[%clk 0:01:14.9]} 46.
Rb7+ {[%clk 0:00:18.5]} 46... Kg6 {[%clk 0:01:14.8]} 47. b4 {[%clk 0:00:20.4]}
47... Rb3 {[%clk 0:01:14.1]} 48. Rb6+ {[%clk 0:00:21.7]} 48... Kg7 {[%clk
0:01:14.7]} 49. Rb7+ {[%clk 0:00:23.6]} 49... Kg6 {[%clk 0:01:15.7]} 50. b5
{[%clk 0:00:25.5]} 50... Kh6 {[%clk 0:01:14]} 51. Rb6+ {[%clk 0:00:26.6]} 51...
Kg7 {[%clk 0:00:59.5]} 52. Rb7+ {[%clk 0:00:28.5]} 52... Kg6 {[%clk 0:00:59.2]}
53. b6 {[%clk 0:00:30.4]} 53... Kh6 {[%clk 0:00:59.7]} 54. Rb8 {[%clk
0:00:28.9]} 54... Kg7 {[%clk 0:00:59.7]} 55. b7 {[%clk 0:00:17.6]} 55... Kh7
{[%clk 0:01:00.4]} 56. Kf1 {[%clk 0:00:16.6]} 56... Rb2 {[%clk 0:01:01]} 57. Ke1
{[%clk 0:00:16.6]} 57... Kg7 {[%clk 0:01:02]} 58. Kd1 {[%clk 0:00:17.9]} 58...
Kh7 {[%clk 0:01:01.2]} 59. Kc1 {[%clk 0:00:19.1]} 59... Rb5 {[%clk 0:01:00.9]}
60. Kc2 {[%clk 0:00:20]} 60... Kg7 {[%clk 0:01:01.4]} 61. Kc3 {[%clk 0:00:21.3]}
61... Rb1 {[%clk 0:01:02.1]} 62. Kd4 {[%clk 0:00:21.9]} 62... Kh7 {[%clk
0:01:03.2]} 63. Kd5 {[%clk 0:00:22.4]} 63... Rd1+ {[%clk 0:01:03.5]} 64. Ke6
{[%clk 0:00:22.9]} 64... Rb1 {[%clk 0:01:04.6]} 65. Re8 {[%clk 0:00:17.1]} 65...
Rxb7 {[%clk 0:01:05.1]} 66. Re7+ {[%clk 0:00:17.9]} 66... Rxe7+ {[%clk
0:01:06.4]} 67. Kxe7 {[%clk 0:00:19.8]} 67... Kg6 {[%clk 0:01:07.6]} 68. Ke6
{[%clk 0:00:21.1]} 68... Kg7 {[%clk 0:01:08.9]} 69. Kf5 {[%clk 0:00:21.8]} 1-0